{"text_format":"1","workbook":"xlsx","n_sheets":1,"sheets":["CATALOGO FOIS202301"],"not_rendered":{"charts":0,"images":4,"macros":1,"external_links":1,"defined_names":26,"comments":0,"pivot_tables":0},"unopened":[],"bounds":{"document_bytes":16777216,"sheet_cells":100000,"rows_first":2000,"rows_last":500,"rows_between":2000,"halvings":0,"cell_chars":16384,"cell_head_chars":4096},"cells_cut":0,"cells_raw":0,"read":"whole","date_system":"1900"}

{"sheet":"CATALOGO FOIS202301","index":0,"n_rows":71,"n_cols":7,"rows_kept":71,"cut":false,"hidden":false,"merged":[[1,0,1,6],[2,0,2,6],[3,0,3,6],[5,0,5,6],[7,0,7,6]]}
[]
["H. XVII AYUNTAMIENTO DE LA PAZ"]
["DIRECCIÓN GENERAL DE GESTIÓN INTEGRAL DE LA CIUDAD"]
["DIRECCION DE OBRAS PUBLICAS"]
[]
["CATALOGO DE CONCEPTOS"]
[]
["PAVIMENTACION CON CARPETA ASFALTICA DEL CIRCUITO URBANO SUR EN LA CIUDAD DE LA PAZ, B.C.S. (TRAMO 1, CALLE PALMA REAL, TRAMO BOULEVARD FORJADORES DE SUDCALIFORNIA A CALLE EL PALMITO Y CALLE SIN NOMBRE DE CALLE EL PALMITO A CALLE PUERTO PICHILINGUE"]
[]
["CLAVE","CONCEPTO","UNIDAD","CANTIDAD","PRECIO UNITARIO","PRECIO UNITARIO CON LETRA","IMPORTE"]
[]
[null,"I.-TRABAJOS PRELIMINARES DE OBRA"]
[1,"DESMONTE Y REUBICACION DE ESTRUCTURAS URBANAS EXISTENTES, COMO SON POSTES, LUMINARIAS, SEÑALAMIENTO ALTAS VERTICALES, ANUNCIOS, ETC. INCLUYE MANIOBRAS, DESMONTE DE SECCIONES DEL POSTE, LAMPARA, BASES DE CONCRETO, REGISTRO ELECTRICO, HERRAJES, ACCESORIOS, EQUIPO, MANO DE OBRA, HERRAMIENTA, ESTIBA, TRASLADO, ACARREOS, REINSTALACION Y TODO LO NECESARIO PARA SU CORRECTA EJECUCION. P.U.O.T.","PZA",16,null,null,{"$f":"ROUND(D13*E13,2)","v":0}]
[{"$f":"MAX(A1:A13)+1","v":2},"DESHIERVE Y DESMONTE, POR UNIDAD DE OBRA TERMINADA. INCLUYE: HERRAMIENTA, EQUIPO Y MANO DE OBRA.","HA",2.4,null,null,{"$f":"ROUND(D14*E14,2)","v":0}]
[{"$f":"MAX(A1:A14)+1","v":3},"DESPALMES DE CORTES Y DESPLANTE DE TERRAPLENES, DESPERDICIANDO EL MATERIAL QUE SERÁ UTILIZADO PARA ARROPE DE TERRAPLENES, POR UNIDAD DE OBRA TERMINADA.INCLUYE: HERRAMIENTA, EQUIPO Y MANO DE OBRA.","M3",5406.38,null,null,{"$f":"ROUND(D15*E15,2)","v":0}]
[{"$f":"MAX(A12:A15)+1","v":4},"EXCAVACIÓN POR MEDIOS MECANICOS Y/O MANUALES PARA OBRA DE DRENAJE Y SUBDRENAJE, EN ZANJAS, EN TERRENO CON CUALQUIER CLASIFICACION Y PROFUNDIDAD EN PRESENCIA DE AGUA O EN SECO, RETIRO DEL MATERIAL HASTA 4 M DE DISTANCIA HORIZONTAL, EL MATERIAL PRODUCTO DE LA EXCAVACION SE UTILIZARA PARA EL RELLENO DE LA MISMA, EL PRECIO UNITARIO INCLUYE: TRAZO Y NIVELACION, EQUIPO DE BOMBEO PARA ACHIQUE, OBRAS DE PROTECCION DE TALUDES DE ZANJA, TRASPALEO, SEÑALAMIENTO PREVENTIVO, AFINE DE TALUDES Y FONDO DE ZANJA, LIMPIEZA, LA MANO DE OBRA, EQUIPO Y HERRAMIENTA NECESARIOS PARA LA CORRECTA EJECUCIÓN DE LOS TRABAJOS. P.U.O.T.","M3",557.72,null,null,{"$f":"ROUND(D16*E16,2)","v":0}]
[{"$f":"MAX(A13:A16)+1","v":5},"RELLENO DE LA OBRAS DE PROTECCIÓN Y/O DRENAJE UTILIZANDO MATERIALES COMPACTABLES PROCEDENTES DEL CORTE. INCLUYE: ESCARIFICADO, TENDIDO, INCORPORACION DE HUMEDAD, ACAMELLONADO EN ALAS, AFINE Y COMPACTACION AL 90% DE SU P.V.S.M. DE LA PRUEBA PROCTOR, CARGA Y ACARREO DEL MATERIAL NO UTILIZABLE DENTRO Y FUERA DE LA OBRA HASTA EL LUGAR INDICADO POR SUPERVISION, LA MANO DE OBRA, HERRAMIENTA Y EQUIPO NECESARIO. P.U.O.T.","M3",400.86,null,null,{"$f":"ROUND(D17*E17,2)","v":0}]
[null,"II.- GUARNICIONES"]
[{"$f":"MAX(A16:A18)+1","v":6},"EXCAVACION A MANO EN TERRENO CON CUALQUIER CLASIFICACION Y PROFUNDIDAD EN PRESENCIA DE AGUA O EN SECO, PARA DESPLANTE DE GUARNICION. INCLUYE: TRAZO, NIVELACION, AFINE DE FONDO Y TALUDES, RETIRO DE MATERIAL HASTA 4 MTS. DE DISTANCIA HORIZONTAL, MATERIALES, MANO DE OBRA, HERRAMIENTA Y EQUIPO NECESARIO","M3",205.29,null,null,{"$f":"ROUND(D19*E19,2)","v":0}]
[{"$f":"MAX(A17:A19)+1","v":7},"GUARNICION DE CONCRETO F´c=150 kg/cm2. R.N. T.M.A. 19 MM. DE 15X20X40 CM DE SECCION TRAPEZOIDAL, CORTE DE JUNTAS VERTICALES CON CORTADORA DE DISCO DE DIAMANTE A UNA PROFUNDIDAD DE 1/3 DEL PERALTE DE LA GUARNICION, LA MODULACION SERÁ INDICADA POR SUPERVISIÓN, SELLADO DE LA JUNTA CON CINTILLA DE POLIETILENO Y Y SELLADOR AUTONIVELANTE A BASE DE  POLIURETANO-ASFALTO TIPO SONOMERIC 1 Ó SIMILAR. INCLUYE: CIMBRA, DESCIMBRADO, ELABORACION, COLADO, VIBRADO Y CURADO DEL CONCRETO, TRANSPORTE A LA SIGUIENTE POSICION, MATERIALES, MANO DE OBRA Y HERRAMIENTA.","ML",2566.17,null,null,{"$f":"ROUND(D20*E20,2)","v":0}]
[{"$f":"MAX(A18:A20)+1","v":8},"CONFINAMIENTO DE GUARNICION CON MATERIAL SELECCIONADO PRODUCTO DE LA EXCAVACION, LIBRE DE BOLEOS DE MAS DE 3\", PRODUCTO DE LA EXCAVACION: INCLUYE MANO DE OBRA Y HERRAMIENTA.","ML",2566.17,null,null,{"$f":"ROUND(D21*E21,2)","v":0}]
[{"$f":"MAX(A18:A21)+1","v":9},"SUMINISTRO Y APLICACIÓN DE PINTURA VINILICA AHULADA MARCA COMEX, EN COLOR BLANCO O AMARILLO (PREVIAMENTE AUTORIZADO) EN TRAMOS RECTOS Y ROJO EN CURVAS, A DOS MANOS EN GUANICIONES DE CONCRETO, INCLUYE: PREPARACION DE LA SUPERFICIE, LIMPIEZA, MATERIALES, MANO DE OBRA Y HERRAMIENTA.","ML",2566.17,null,null,{"$f":"ROUND(D22*E22,2)","v":0}]
[10,"DEMOLICION DE GUARNICIONES DE CONCRETO EXISTENTES POR ENCONTRARSE EN MALAS CONDICIONES Y/O NO DAR LOS NIVELES DE PROYECTO. INCLUYE: CORTE CON CORTADORA DE DISCO, CARGA Y RETIRO DE ESCOMBRO FUERA DE LA OBRA HASTA EL LUGAR INDICADO POR LA SUPERVISION, LA MANO DE OBRA, HERRAMIENTA Y EQUIPO NECESARIO.","ML",385,null,null,{"$f":"ROUND(D23*E23,2)","v":0}]
[null,"III.- CONSTRUCCION DE BANQUETAS"]
[{"$f":"MAX(A22:A24)+1","v":11},"CONSTRUCCION DE BANQUETAS DE 8 CM DE ESPESOR ARMADA CON MALLA-LACK 6x6-10/10. EN ZONA PEATONAL, ACABADO LAVADO, EN LOSAS DE SECCION VARIABLE, JUNTAS FRIAS. EL CONCRETO SERA F´c=150 KG/CM2. T.M.A. 3/4\". REV. DE 8 A 10 CM PREMEZCLADO ELABORADO EN PLANTA, INCLUYE: SUMINISTRO, COLADO, EXTENDIDO, VIBRADO Y ACARREOS DEL CONCRETO, SUMINISTRO Y APLICACIÓN DE CURACRETO EN COLOR BLANCO MARCA PASA O SIKA, CON EL EQUIPO ADECUADO, Y EN LA PROPORCION INDICADA POR EL FABRICANTE, CIMBRA EN FRONTERAS, NIVELACION, AFINE, COMPACTACION AL 95 % EN UN ESPESOR DE 15 CM Y  PREPARACION DE LA SUPERFICIE DEL TERRENO, ACARREOS DE LOS MATERIALES DENTRO DE LA OBRA, LIMPIEZA GENERAL ANTES Y UNA VEZ CONCLUIDOS LOS TRABAJOS, CARGA Y   ACARREOS DE LOS MATERIALES NO UTILIZABLES HASTA EL LUGAR INDICADO POR SUPERVISION, TRAZO Y NIVELACION, MATERIALES, MANO DE OBRA,  HERRAMIENTA Y EQUIPO NECESARIO. P.U.O.T. NOTA: EL LICITANTE DEBERA DE CONSIDERAR LAS PRUEBAS DE LABORATORIO RESPECTIVAS EFECTUADAS POR UN LABORATORIO EXTERNO AL MISMO Y PRESENTARSE AL MOMENTO DE REALIZAR EL TRAMITE PARA EL PAGO DE ESTIMACIONES","M2",54.26,null,null,{"$f":"ROUND(D25*E25,2)","v":0}]
[{"$f":"MAX(A24:A25)+1","v":12},"FABRICACION DE RAMPAS PARA EL ACCESO DE PERSONAS CON CAPACIDADES DIFERENTES, DE CONCRETO DE 8 CM DE ESPESOR, Y CON UNA PENDIENTE MAXIMA DEL 8%, ACABADO PULIDO Y RAYADO TRANSVERSAL CON PEINE METALICO PARA DAR ACABADO ANTIDERRAPANTE, EN LOSAS DE 1.20 M. DE ANCHO COMO MINIMO. CON BORDES LATERALES DE 10 CM DE ALTURA Y 10 CM DE ANCHO DE CONCRETO, EN EL DESARROLLO LONGITUDINAL DE LA RAMPA, ACABADO EN ARISTAS CON VOLTEADOR. EL CONCRETO SERA F´c=150 KG/CM2. T.M.A. 3/4\". REV. DE 8 A 10 CM. PREMEZCLADO ELABORADO EN PLANTA. INCLUYE: SUMINISTRO, COLADO, EXTENDIDO, VIBRADO Y ACARREOS DEL CONCRETO, SUMINISTRO Y APLICACION DE CURACRETO EN COLOR BLANCO MARCA PASA O SIKA, CON EL EQUIPO ADECUADO, Y EN LA PROPORCION INDICADA POR EL FABRICANTE, CIMBRA EN FRONTERAS, NIVELACION, AFINE, COMPACTACION AL 95 % EN UN ESPESOR DE 15 CM Y PREPARACION DE LA SUPERFICIE DEL TERRENO, ACARREOS DE LOS MATERIALES DENTRO DE LA OBRA, LIMPIEZA GENERAL ANTES Y UNA VEZ CONCLUIDOS LOS TRABAJOS, CARGA Y ACARREOS DE LOS MATERIALES NO UTILIZABLES HASTA EL LUGAR INDICADO POR SUPERVISION, TRAZO Y NIVELACION, MATERIALES, MANO DE OBRA, HERRAMIENTA Y EQUIPO NECESARIO. U.O.T. (NOTA: EL LICITANTE DEBERA DE CONSIDERAR LAS PRUEBAS DE LABORATORIO RESPECTIVAS, EFECTUADAS POR UN LABORATORIO EXTERNO AL MISMO Y PRESENTARSE AL MOMENTO DE REALIZAR EL TRAMITE PARA EL PAGO DE ESTIMACIONES)","M2",10,null,null,{"$f":"ROUND(D26*E26,2)","v":0}]
[{"$f":"MAX(A24:A26)+1","v":13},"EXCAVACION EN CORTE EN MATERIAL INVESTIGADO EN OBRA, EN AREAS DE BANQUETAS, RAMPAS Y ADYACENTES, PARA DAR NIVELES DE PROYECTO. INCLUYE: TRAZO Y NIVELACION, CARGA, ACARREOS DENTRO Y FUERA DE LA OBRA DEL MATERIAL NO UTILIZABLE HASTA EL LUGAR INDICADO POR SUPERVISION, LA MANO DE OBRA, HERRAMIENTA Y EQUIPO NECESARIO","M3",13.57,null,null,0]
[{"$f":"MAX(A25:A27)+1","v":14},"RELLENO COMPACTADO CON EQUIPO MECANICO CON MATERIAL SELECCIONADO PRODUCTO DE BANCO, LIBRE DE BOLEO MAYOR DE 3\", EN CAPAS DE 20 CM, COMPACTADO AL 90% PROCTOR, PARA DESPLANTE DE BANQUETAS Y GUARNICIONES ADYACENTES, PARA DAR NIVELES DE PROYECTO, SEGUN INDICACIONES DE SUPERVISION. INCLUYE: CRIBADO DEL MATERIAL, ACARREOS DENTRO DE LA OBRA, INCORPORACION DE HUMEDAD, MANO DE OBRA, HERRAMIENTA Y EQUIPO NECESARIO. ","M3",5.43,null,null,0]
[{"$f":"MAX(A26:A28)+1","v":15},"RELLENO COMPACTADO CON EQUIPO MECANICO CON MATERIAL SELECCIONADO PRODUCTO DE EXCAVACION EN CORTE, LIBRE DE BOLEO MAYOR DE 3\", EN CAPAS DE 20 CM, COMPACTADO AL 85% PROCTOR, EN AREAS DE BANQUETAS Y ADYACENTES PARA DAR NIVELES DE PROYECTO, SEGÚN INDICACIONES DE SUPERVISION. INCLUYE: CRIBADO DE MATERIAL, CARGA Y ACARREOS DENTRO DE LA OBRA, INCORPORACION DE HUMEDAD, MANO DE OBRA, HERRAMIENTA Y EQUIPO NECESARIO","M3",10.85,null,null,0]
[{"$f":"MAX(A26:A29)+1","v":16},"DEMOLICION DE BANQUETAS Y/O RAMPAS EN COCHERAS DE CONCRETO (CON O SIN ARMADO)  EXISTENTES POR ENCONTRARSE EN MALAS CONDICIONES Y/O NO DAR LOS NIVELES DE PROYECTO . INCLUYE: CORTE CON CORTADORA DE DISCO, LIMPIEZA, CARGA Y RETIRO DE ESCOMBRO FUERA DE LA OBRA HASTA EL LUGAR INDICADO POR LA SUPERVISION, LA MANO DE OBRA, HERRAMIENTA Y EQUIPO NECESARIO.","M2",72.260000000000005,null,null,0]
[null,"V.- TERRACERIAS"]
[{"$f":"MAX(A30:A31)+1","v":17},"TRAZO Y NIVELACION DE TERRACERIAS, AL AMPARO DE ESTE CONCEPTO EL CONTRATISTA DE ACUERDO A LOS PLANOS DE PROYECTO QUE LE SEAN SUMINISTRADOS, HARA EL TRAZO Y NIVELACION CON EQUIPO DE TOPOGRAFIA DE LOS EJES, LIMITES Y DETALLES CONSTRUCTIVOS DE LOS TRABAJOS. DEBERA COLOCAR REFERENCIAS FIJAS, FUERA DE LAS AREAS DE LOS TRABAJOS PARA ASEGURAR LOS ALINEAMIENTOS Y NIVELES. INCLUYE: LOS MATERIALES, MANO DE OBRA, HERRAMIENTA Y EQUIPO NECESARIO.","M2",14558.44,null,null,{"$f":"ROUND(D32*E32,2)","v":0}]
[{"$f":"MAX(A31:A32)+1","v":18},"EXCAVACION Y/O CORTE POR MEDIOS MECANICOS EN TERRENO CON CUALQUIER CLASIFICACION EN TERRENO NATURAL, EL MATERIAL PRODUCTO DEL CORTE SE UTILIZARA EN LA FORMACION DE TERRAPLENES, CON ESPESOR VARIABLE PARA DAR EL NIVEL DEL TERRAPLEN. INCLUYE: ESCARIFICADO, ACAMELLONADO DEL MATERIAL PARA SER RETIRADO, Y EL EQUIPO NECESARIO.","M3",3480,null,null,0]
[{"$f":"MAX(A31:A33)+1","v":19},"CONSTRUCCION Y FORMACION DE TERRAPLENES UTILIZANDO MATERIALES COMPACTABLES PROCEDENTES DEL CORTE. INCLUYE: ESCARIFICADO, TENDIDO, INCORPORACION DE HUMEDAD, ACAMELLONADO EN ALAS, AFINE Y COMPACTACION AL 90% DE SU P.V.S.M. DE LA PRUEBA PROCTOR, CARGA Y ACARREO DEL MATERIAL NO UTILIZABLE DENTRO Y FUERA DE LA OBRA HASTA EL LUGAR INDICADO POR SUPERVISION, LA MANO DE OBRA, HERRAMIENTA Y EQUIPO NECESARIO.","M3",3644.64,null,null,0]
[{"$f":"MAX(A31:A34)+1","v":20},"CONSTRUCCION Y FORMACION DE TERRAPLENES UTILIZANDO MATERIALES COMPACTABLES PROCEDENTES DEL CORTE. INCLUYE: ESCARIFICADO, TENDIDO, INCORPORACION DE HUMEDAD, ACAMELLONADO EN ALAS, AFINE Y COMPACTACION AL 100% DE SU P.V.S.M. DE LA PRUEBA PROCTOR, CARGA Y ACARREO DEL MATERIAL NO UTILIZABLE DENTRO Y FUERA DE LA OBRA HASTA EL LUGAR INDICADO POR SUPERVISION, LA MANO DE OBRA, HERRAMIENTA Y EQUIPO NECESARIO.","M3",4367.53,null,null,0]
[21,"CONSTRUCCION Y FORMACION DE CAPA ROMPEDORA DE CAPILARIDAD POR CAPAS DE 20 CM DE ESPESOR, FORMADO  DE FRAGMENTOS DE ROCA Y GRAVA CON TAMAÑOS DE PARTICULAS DE 1\" A 8\" UTILIZANDO MATERIALES NO COMPACTABLES CONFORME A LA GRANULOMETRÍA INDICADA, PROCEDENTES DE BANCOS QUE CIUMPLAN CON LAS ESPECIFICACIONES VIGENTES, AUTORIZADO POR SUPERVISION, EN EL DESPLANTE DEL TERRAPLÉN. INCLUYE: TENDIDO, AFINE Y COMPACTACION AL 100% DE SU P.V.S.M. DE LA PRUEBA PROCTOR, CARGA Y ACARREO DEL MATERIAL NO UTILIZABLE DENTRO Y FUERA DE LA OBRA HASTA EL LUGAR INDICADO POR SUPERVISION, LA MANO DE OBRA, HERRAMIENTA Y EQUIPO NECESARIO.","M3",400,null,null,0]
[null,"VI.- PAVIMENTACIÓN"]
[{"$f":"MAX(A35:A37)+1","v":22},"TRAZO Y NIVELACION PARA PAVIMENTACION. AL AMPARO DE ESTE CONCEPTO EL CONTRATISTA DE ACUERDO A LOS PLANOS DE PROYECTO QUE LE SEAN SUMINISTRADOS, HARA EL TRAZO Y NIVELACION CON EQUIPO DE TOPOGRAFIA DE LOS EJES, LIMITES Y DETALLES CONSTRUCTIVOS DE LOS TRABAJOS. DEBERA COLOCAR REFERENCIAS FIJAS, FUERA DE LAS AREAS DE LOS TRABAJOS PARA ASEGURAR LOS ALINEAMIENTOS Y NIVELES. INCLUYE: LOS MATERIALES, MANO DE OBRA, HERRAMIENTA Y EQUIPO NECESARIO.","M2",14558.44,null,null,{"$f":"ROUND(D38*E38,2)","v":0}]
[{"$f":"MAX(A36:A38)+1","v":23},"RECORTE DE CARPETA ASFALTICA EXISTENTE EN MAL ESTADO DE HASTA 5 CM. DE ESPESOR COMPACTOS APROXIMADO, POR MEDIO DE UNA CORTADORA. INCLUYE: BARRIDO Y LIMPIEZA PREVIA (RETIRO DE LOS MATERIALES FUERA DE LA OBRA), DISGREGADO DE LA CARPETA,  ACAMELLONADO, CARGA Y ACARREO DEL MATERIAL NO UTILIZABLE FUERA DE LA OBRA HASTA DONDE LO INDIQUE LA SUPERVISION PARA SU ALMACENAJE Y POSTERIOR REUTILIZACION, LA MANO DE OBRA, HERRAMIENTA Y EQUIPO NECESARIO .(SE ACEPTARA UNICAMENTE EL USO DE MAQUINA RECUPERADORA).","ML",28,null,null,0]
[{"$f":"MAX(A37:A39)+1","v":24},"CONSTRUCCION  DE  BASE  HIDRAULICA  CON  MATERIAL PETREO A TAMAÑO MAXIMO DE 1 1/2\", PARCIALMENTE TRITURADO PROVENIENTE DE BANCO. INCLUYE: ACARREOS, INCORPORACION DE HUMEDAD, HOMOGENIZACION, TENDIDO, AFINE Y COMPACTACION AL 100% DE SU PVSM, ESPESOR DE 20 CM. COMPACTOS, LIMPIEZA PREVIA DEL AREA, MANO DE OBRA, MATERIALES, HERRAMIENTA, EQUIPO NECESARIO.","M2",14558.44,null,null,0]
[{"$f":"MAX(A39:A40)+1","v":25},"RIEGO DE IMPREGNACION CON ASFALTO FM-1 Y/O FR-3 REBAJADO AL 8% EN VOLUMEN CON DIESEL, EN PROPORCIÓN DE 1.5 LTS/M² (NO SE ACEPTARA EL USO DE EMULSIONES). INCLUYE: BARRIDO Y LIMPIEZA PREVIA DE LA SUPERFICIE (RETIRO FUERA DE LA OBRA DE LOS MATERIALES PRODUCTO DE LA MISMA), CARGA, CALENTADO, FLETE, ACARREOS Y APLICACIÓN DEL ASFALTO, EN CASO DE SER NECESARIO SE REALIZARA UN ARENEO EN LAS ZONAS DONDE NO PENETRE LA IMPREGNACIÓN, EN UN TIEMPO NO MENOR DE 24 HRS., DESPUÉS DEL RIEGO, LOS MATERIALES, MANO DE OBRA, HERRAMIENTA, EQUIPO NECESARIO. (INCLUYE EL COSTO DEL ASFALTO). P.U.O.T.\nNOTA: AL EFECTUAR ESTE CONCEPTO, DEBERA CUIDARSE NO MANCHAR LAS GUARNICIONES Y BANQUETAS, EN CUYO CASO SE TENDRAN QUE LIMPIAR SEGUN INDICACIONES DE LA SUPERVISION DE OBRA.","M2",14558.44,null,null,0]
[{"$f":"MAX(A40:A41)+1","v":26},"RIEGO DE LIGA PARA CARPETA CON ASFALTO FR-3 EN PROPORCION DE 0.5 LTS/M². INCLUYE: BARRIDO, LIMPIEZA Y RETIRO FUERA DE LA OBRA DE LOS MATERIALES PRODUCTO DE LA LIMPIEZA HASTA EL LUGAR INDICADO, CARGA, CALENTADO, ACARREOS, APLICACION, DEL ASFALTO, MANO DE OBRA, HERRAMIENTA, EQUIPO. (INCLUYE EL COSTO DEL ASFALTO). P.U.O.T.\n(NOTA: AL EFECTUAR ESTE CONCEPTO, DEBERA CUIDARSE NO MANCHAR LAS GUARNICIONES Y BANQUETAS, EN CUYO CASO SE TENDRAN QUE LIMPIAR SEGUN INDICACIONES DE LA SUPERVISION DE OBRA.","M2",14066.46,null,null,0]
[{"$f":"MAX(A40:A42)+1","v":27},"CONSTRUCCION DE CARPETA DE CONCRETO ASFALTICO DE 6 CM DE ESPESOR COMPACTOS, EN CALIENTE, ELABORADA EN PLANTA CON MATERIAL PETREO Y CEMENTO ASFALTICO PG 70H-16 EN PROPORCION DE 125-130 KG/M3. INCLUYE: ADITIVO ADIFLEX \"EN\" AL 2% EN VOLUMEN, MEZCLA HOMOGENIZADA, TENDIDO, AFINE Y COMPACTADO AL 95%, ACARREOS, MATERIALES, MANO DE OBRA, HERRAMIENTA Y EQUIPO NECESARIO.\n( INCLUYE EL COSTO DEL CEMENTO ASFALTICO). P.U.O.T. \n(NOTA: AL EFECTUAR ESTE CONCEPTO, DEBERA CUIDARSE NO MANCHAR LAS GUARNICIONES Y BANQUETAS, EN CUYO CASO SE TENDRAN QUE LIMPIAR SEGUN INDICACIONES DE LA SUPERVISION DE OBRA.","M2",14066.46,null,null,{"$f":"ROUND(D43*E43,2)","v":0}]
[{"$f":"MAX(A41:A43)+1","v":28},"LIMPIEZA DE OBRA TERMINADA. INCLUYE: ACOPIO, CARGA, ACARREO DE MATERIALES Y ESCOMBRO PRODUCTO DE LOS TRABAJOS EJECUTADOS FUERA DE LA OBRA, HASTA EL SITIO AUTORIZADO, SEGUN LO INDIQUE LA SUPERVISION, LA MANO DE OBRA, HERRAMIENTA Y EQUIPO NECESARIO.","M2",14558.44,null,null,0]
[null,"VII.-OBRAS DE PROTECCION Y DRENAJE"]
[{"$f":"MAX(A43:A45)+1","v":29},"CONSTRUCCIÓN DE MURO DE MAMPOSTERÍA DE PIEDRA BRAZA DE TERCERA CLASE JUNTEADO CON MORTERO CEMENTO EN PROPORCIÓN 1:3, PARA PROTECCIÓN DE LA GAZA DE INCORPORACIÓNINCLUYE:  FLETE Y ACARREOS HASTA LA OBRA, ACARREOS HASTA EL LUGAR DE COLOCACION, CARGA, ACARREOS, TRAZO, NIVELACION, LA MANO DE OBRA, HERRAMIENTA Y EQUIPO NECESARIO. P.U.O.T.","M3",78.430000000000007,null,null,{"$f":"ROUND(D46*E46,2)","v":0}]
[{"$f":"MAX(A45:A46)+1","v":30},"SUMINISTRO Y COLOCACION DE MALLA ELECTROSOLDADA EN ZAMPEADO Y DENTELLÓN 6-6/4-4. INCLUYE: ALAMBRE PARA AMARRES, FLETE Y ACARREOS HASTA LA OBRA, ACARREOS HASTA EL LUGAR DE COLOCACION, SUMINISTRO, CARGA, ACARREOS, TRAZO, NIVELACION, LA MANO DE OBRA, HERRAMIENTA Y EQUIPO NECESARIO. P.U.O.T.","M2",360,null,null,{"$f":"ROUND(D47*E47,2)","v":0}]
[{"$f":"MAX(A45:A47)+1","v":31},"CONSTRUCCIÓN DE ZAMPEADO DE DESCARGA Y DENTELLÓN DE CONCRETO HIDRAULICO F´c= 150 KG/CM² HECHO EN OBRA, T.M.A. 3/4\". DE 10 CM DE ESPESOR CON UN REVENIMIENTO DE 12-15 CM., PARA OBRA DE DRENAJE MENOR. INCLUYE: CIMBRA CON MADERA DE PINO ACABADO COMUN, COLADO, VIBRADO, AFINE, CURADO. FLETE Y ACARREOS HASTA LA OBRA, EN SECCION DE ACUERDO A PROYECTO, AMARRES, ACARREOS HASTA EL LUGAR DE COLOCACION, SUMINISTRO, CARGA, ACARREOS, TRAZO, NIVELACION, EXCAVACION EN TERRENO INVESTIGADO EN OBRA, RELLENO COMPACTADO AL 95% MINIMO, CON MATERIAL SELECCCIONADO PRODUCTO DE LA EXCAVACION, LA MANO DE OBRA, HERRAMIENTA Y EQUIPO NECESARIO. P.U.O.T. (DETALLES EN PLANO).","M3",42.4,null,null,{"$f":"ROUND(D48*E48,2)","v":0}]
[null,"VIII.- SEÑALAMIENTO VERTICAL Y HORIZONTAL"]
[{"$f":"MAX(A48:A49)+1","v":32},"SUMINISTRO Y COLOCACION DE SEÑAL OBRAS Y DISPOSITIVOS DIVERSOS OD-5 INDICADOR DE OBSTACULOS, CON UN TABLERO DE 122 CM x 60 CM, SEGUN NORMAS DE LA DIRECCION DE TRANSITO MUNICIPAL, SIN CEJA FABRICADA EN LAMINA GALVANIZADA CAL.16 CON POSTE CUADRADO DE 1 1/2\" x 1 1/2\" CAL.14  SUJETA CON TORNILLOS 3/8\" x 3\" Y TUERCAS CON GUASA DE PRESION, LAS IMPRESIONES DE LETRAS Y SIMBOLOS SERAN EN SCOTCHLITE GRADO INGENIERIA EN ALTA INTENSIDAD, AHOGADA EN CONCRETO F´c= 150 KG/CM2. LA PARTE POSTERIOR DE COLOR GRIS MATE, LA DISTANCIA Y ALTURA DE LA SEÑAL SERA LO INDICADO EN EL MANUAL DE DISPOSITIVO PARA EL CONTROL DEL TRANSITO EN CALLES Y CARRETERAS INCLUYE: MATERIALES, MANO DE OBRA Y HERRAMIENTA. P.U.O.T.","PZA",2,null,null,{"$f":"ROUND(D50*E50,2)","v":0}]
[{"$f":"MAX(A49:A50)+1","v":33},"SUMINISTRO Y COLOCACION DE SEÑAL OBRAS Y DISPOSITIVOS DIVERSOS OD-11 INDICADOR DE CURVA PELIGROSA, CON UN TABLERO DE 76 CM x 60 CM, SEGUN NORMAS DE LA DIRECCION DE TRANSITO MUNICIPAL, SIN CEJA FABRICADA EN LAMINA GALVANIZADA CAL.16 CON POSTE CUADRADO DE 1 1/2\" x 1 1/2\" CAL.14  SUJETA CON TORNILLOS 3/8\" x 3\" Y TUERCAS CON GUASA DE PRESION, LAS IMPRESIONES DE LETRAS Y SIMBOLOS SERAN EN SCOTCHLITE GRADO INGENIERIA EN ALTA INTENSIDAD, AHOGADA EN CONCRETO F´c= 150 KG/CM2. LA PARTE POSTERIOR DE COLOR GRIS MATE, LA DISTANCIA Y ALTURA DE LA SEÑAL SERA LO INDICADO EN EL MANUAL DE DISPOSITIVO PARA EL CONTROL DEL TRANSITO EN CALLES Y CARRETERAS INCLUYE: MATERIALES, MANO DE OBRA Y HERRAMIENTA. P.U.O.T.","PZA",27,null,null,0]
[{"$f":"MAX(A49:A51)+1","v":34},"SUMINISTRO Y APLICACION DE PINTURA EN LA ORILLA DERECHA DOBLE CONTINUA (M-2.2) DE COLOR BLANCO DE 10 CM DE ANCHO CON UNA SEPARACIÓN DE 10 CM, PREVIAMENTE AUTORIZADO POR SUPERVISION CON PINTURA TERMOPLÁSTICA PARA TRAFICO MARCA SEMEX, Y SE LE APLICARA UN REFLEJANTE CON MICROESFERA, Y SU APLICACION SERA SEGUN LO INDICADO EN EL MANUAL DE DISPOSITIVOS PARA EL CONTROL DEL TRANSITO EN CALLES Y CARRETERAS, INCLUYE: LIMPIEZA POR ASPERSION PARA ELIMINAR LA PRESENCIA DE POLVO, GRASA, ACEITE Y CUALQUIER MATERIAL, MATERIALES, MANO DE OBRA, HERRAMIENTA Y EQUIPO NECESARIO. P.U.O.T. ","ML",1967.63,null,null,0]
[{"$f":"MAX(A50:A52)+1","v":35},"SUMINISTRO Y APLICACION DE PINTURA EN LA ORILLA IZQUIERDA PARA DELIMITAR SENTIDOS DOBLE CONTINUA (M-1.6) DE COLOR AMARILLO DE 10 CM DE ANCHO CON UNA SEPARACIÓN DE 10 CM, PREVIAMENTE AUTORIZADO POR SUPERVISION CON PINTURA TERMOPLÁSTICA PARA TRAFICO MARCA SEMEX, Y SE LE APLICARA UN REFLEJANTE CON MICROESFERA, Y SU APLICACION SERA SEGUN LO INDICADO EN EL MANUAL DE DISPOSITIVOS PARA EL CONTROL DEL TRANSITO EN CALLES Y CARRETERAS, INCLUYE: LIMPIEZA POR ASPERSION PARA ELIMINAR LA PRESENCIA DE POLVO, GRASA, ACEITE Y CUALQUIER MATERIAL, MATERIALES, MANO DE OBRA, HERRAMIENTA Y EQUIPO NECESARIO. P.U.O.T. ","ML",783.92,null,null,0]
[{"$f":"MAX(A50:A53)+1","v":36},"SUMINISTRO Y APLICACION DE PINTURA EN LA ORILLA IZQUIERDA  CONTINUA SENCILLA (M-3.3) DE COLOR AMARILLO DE 10 CM DE ANCHO PREVIAMENTE AUTORIZADO POR SUPERVISION CON PINTURA TERMOPLÁSTICA PARA TRAFICO MARCA SEMEX, Y SE LE APLICARA UN REFLEJANTE CON MICROESFERA, Y SU APLICACION SERA SEGUN LO INDICADO EN EL MANUAL DE DISPOSITIVOS PARA EL CONTROL DEL TRANSITO EN CALLES Y CARRETERAS, INCLUYE: LIMPIEZA POR ASPERSION PARA ELIMINAR LA PRESENCIA DE POLVO, GRASA, ACEITE Y CUALQUIER MATERIAL, MATERIALES, MANO DE OBRA, HERRAMIENTA Y EQUIPO NECESARIO. P.U.O.T. ","ML",350,null,null,0]
[37,"SUMINISTRO Y APLICACION DE PINTURA DE RAYAS CANALIZADORAS, SE PINTARA UN ANCHO DE 20 CM DE COLOR AMARILLO PREVIAMENTE AUTORIZADO POR SUPERVISION CON PINTURA TERMOPLÁSTICA PARA TRAFICO MARCA SEMEX, Y SE LE APLICARA UN REFLEJANTE CON MICROESFERA, Y SU APLICACION SERA SEGUN LO INDICADO EN EL MANUAL DE DISPOSITIVOS PARA EL CONTROL DEL TRANSITO EN CALLES Y CARRETERAS, INCLUYE: LIMPIEZA POR ASPERSION PARA ELIMINAR LA PRESENCIA DE POLVO, GRASA, ACEITE Y CUALQUIER MATERIAL, MATERIALES, MANO DE OBRA, HERRAMIENTA Y EQUIPO NECESARIO. P.U.O.T. ","ML",74.959999999999994,null,null,0]
[38,"SUMINISTRO Y APLICACION DE PINTURA DE MARCAS M-7.1 RAYAS PARA CRUCE DE PEATONES EN VÍAS PRIMARIAS, CON PINTURA TERMOPLÁSTICA COLOR AMARILLO RETRORREFLEJANTE DE 40 CM DE ANCHO,  INCLUYE LIMPIEZA POR ASPERSION PARA ELIMINAR LA PRESENCIA DE POLVO, GRASA, ACEITE Y CUALQUIER MATERIAL, MATERIALES, MANO DE OBRA, HERRAMIENTA Y EQUIPO NECESARIO.","ML",317.57,null,null,0]
[39,"SUMINISTRO Y APLICACION DE PINTURA DE MARCAS M-6 RAYA DE ALTO, CON PINTURA TERMOPLÁSTICA COLOR BLANCO RETRORREFLEJANTE DE 30 CM DE ANCHO,  INCLUYE LIMPIEZA POR ASPERSION PARA ELIMINAR LA PRESENCIA DE POLVO, GRASA, ACEITE Y CUALQUIER MATERIAL, MATERIALES, MANO DE OBRA, HERRAMIENTA Y EQUIPO NECESARIO.","ML",16.07,null,null,0]
[40,"SUMINISTRO Y APLICACION DE PINTURA PARA FLECHAS, LETRAS, NUMEROS DE COLOR BLANCO PREVIAMENTE AUTORIZADO POR SUPERVISION CON PINTURA TERMOPLÁSTICA PARA TRAFICO MARCA SEMEX, Y SE LE APLICARA UN REFLEJANTE CON MICROESFERA, Y SU APLICACION SERA SEGUN LO INDICADO EN EL MANUAL DE DISPOSITIVOS PARA EL CONTROL DEL TRANSITO EN CALLES Y CARRETERAS, INCLUYE: LIMPIEZA POR ASPERSION PARA ELIMINAR LA PRESENCIA DE POLVO, GRASA, ACEITE Y CUALQUIER MATERIAL, MATERIALES, MANO DE OBRA, HERRAMIENTA Y EQUIPO NECESARIO. P.U.O.T. ","PZA",28,null,null,0]
[41,"SUMINISTRO Y APLICACION DE PINTURA PARA SÍMBOLOS PARA CICLO VÍAS, CON PINTURA TERMOPLÁSTICA COLOR BLANCO RETRORREFLEJANTE DE 40 CM DE ANCHO,  INCLUYE LIMPIEZA POR ASPERSION PARA ELIMINAR LA PRESENCIA DE POLVO, GRASA, ACEITE Y CUALQUIER MATERIAL, MATERIALES, MANO DE OBRA, HERRAMIENTA Y EQUIPO NECESARIO.","PZA",18,null,null,0]
[42,"SUMINISTRO Y COLOCACION DE SEÑAL PREVENTIVA SP-21 ESTRECHAMIENTO ASIMÉTRICO, CON UN TABLERO DE 71 CM X 71 CM, EN UN POSTE, LAS IMPRESIONES DE LETRAS Y SIMBOLOS SERAN EN SCOTCHLITE REFLECTIVO GRADO INGENIERIA, AHOGADA EN CONCRETO F´c= 150 KG/CM2. LA PARTE POSTERIOR DE COLOR GRIS MATE, LA DISTANCIA Y ALTURA DE LA SEÑAL SERA LO INDICADO EN EL MANUAL DE DISPOSITIVO PARA EL CONTROL DEL TRANSITO EN CALLES Y CARRETERAS INCLUYE: MATERIALES, MANO DE OBRA Y HERRAMIENTA. P.U.O.T.","PZA",1,null,null,0]
[{"$f":"MAX(A56:A60)+1","v":43},"SUMINISTRO Y COLOCACION DE SEÑAL PREVENTIVA SP-38 CAMINO DIVIDIDO, CON UN TABLERO DE 71 CM X 71 CM, EN UN POSTE, LAS IMPRESIONES DE LETRAS Y SIMBOLOS SERAN EN SCOTCHLITE REFLECTIVO GRADO INGENIERIA, AHOGADA EN CONCRETO F´c= 150 KG/CM2. LA PARTE POSTERIOR DE COLOR GRIS MATE, LA DISTANCIA Y ALTURA DE LA SEÑAL SERA LO INDICADO EN EL MANUAL DE DISPOSITIVO PARA EL CONTROL DEL TRANSITO EN CALLES Y CARRETERAS INCLUYE: MATERIALES, MANO DE OBRA Y HERRAMIENTA. P.U.O.T.","PZA",1,null,null,0]
[{"$f":"MAX(A57:A61)+1","v":44},"SUMINISTRO Y COLOCACION DE SEÑAL PREVENTIVA SP-32 PEATONES, CON UN TABLERO DE 71 CM X 71 CM, EN UN POSTE, LAS IMPRESIONES DE LETRAS Y SIMBOLOS SERAN EN SCOTCHLITE REFLECTIVO GRADO INGENIERIA, AHOGADA EN CONCRETO F´c= 150 KG/CM2. LA PARTE POSTERIOR DE COLOR GRIS MATE, LA DISTANCIA Y ALTURA DE LA SEÑAL SERA LO INDICADO EN EL MANUAL DE DISPOSITIVO PARA EL CONTROL DEL TRANSITO EN CALLES Y CARRETERAS INCLUYE: MATERIALES, MANO DE OBRA Y HERRAMIENTA. P.U.O.T.","PZA",2,null,null,0]
[{"$f":"MAX(A58:A62)+1","v":45},"SUMINISTRO Y COLOCACION DE SEÑAL PREVENTIVA SP-41 REDUCTOR DE VELOCIDAD, CON UN TABLERO DE 71 CM X 71 CM, EN UN POSTE, LAS IMPRESIONES DE LETRAS Y SIMBOLOS SERAN EN SCOTCHLITE REFLECTIVO GRADO INGENIERIA, AHOGADA EN CONCRETO F´c= 150 KG/CM2. LA PARTE POSTERIOR DE COLOR GRIS MATE, LA DISTANCIA Y ALTURA DE LA SEÑAL SERA LO INDICADO EN EL MANUAL DE DISPOSITIVO PARA EL CONTROL DEL TRANSITO EN CALLES Y CARRETERAS INCLUYE: MATERIALES, MANO DE OBRA Y HERRAMIENTA. P.U.O.T.","PZA",6,null,null,0]
[46,"SUMINISTRO Y COLOCACION DE SEÑAL RESTRICTIVA SR-7 CEDA EL PASO, CON UN TABLERO DE 85 CM POR LADO, EN UN POSTE, LAS IMPRESIONES DE LETRAS Y SIMBOLOS SERAN EN SCOTCHLITE REFLECTIVO GRADO INGENIERIA, AHOGADA EN CONCRETO F´c= 150 KG/CM2. LA PARTE POSTERIOR DE COLOR GRIS MATE, LA DISTANCIA Y ALTURA DE LA SEÑAL SERA LO INDICADO EN EL MANUAL DE DISPOSITIVO PARA EL CONTROL DEL TRANSITO EN CALLES Y CARRETERAS INCLUYE: MATERIALES, MANO DE OBRA Y HERRAMIENTA. P.U.O.T.","PZA",1,null,null,0]
[47,"SUMINISTRO Y COLOCACION DE SEÑAL RESTRICTIVA SR-9 VELOCIDAD, CON UN TABLERO DE 71 CM X 71 CM, EN UN POSTE, LAS IMPRESIONES DE LETRAS Y SIMBOLOS SERAN EN SCOTCHLITE REFLECTIVO GRADO INGENIERIA, AHOGADA EN CONCRETO F´c= 150 KG/CM2. LA PARTE POSTERIOR DE COLOR GRIS MATE, LA DISTANCIA Y ALTURA DE LA SEÑAL SERA LO INDICADO EN EL MANUAL DE DISPOSITIVO PARA EL CONTROL DEL TRANSITO EN CALLES Y CARRETERAS INCLUYE: MATERIALES, MANO DE OBRA Y HERRAMIENTA. P.U.O.T.","PZA",5,null,null,0]
[48,"SUMINISTRO Y COLOCACION DE SEÑAL RESTRICTIVA SR-32 PROHIBIDO ESTACIONARSE, CON UN TABLERO DE 71 CM X 71 CM, EN UN POSTE, LAS IMPRESIONES DE LETRAS Y SIMBOLOS SERAN EN SCOTCHLITE REFLECTIVO GRADO INGENIERIA, AHOGADA EN CONCRETO F´c= 150 KG/CM2. LA PARTE POSTERIOR DE COLOR GRIS MATE, LA DISTANCIA Y ALTURA DE LA SEÑAL SERA LO INDICADO EN EL MANUAL DE DISPOSITIVO PARA EL CONTROL DEL TRANSITO EN CALLES Y CARRETERAS INCLUYE: MATERIALES, MANO DE OBRA Y HERRAMIENTA. P.U.O.T.","PZA",4,null,null,0]
[49,"SUMINISTRO Y COLOCACION DE SEÑAL RESTRICTIVA SR-6 ALTO, CON UN TABLERO DE 30 CM POR LADO, EN UN POSTE, CLAS IMPRESIONES DE LETRAS Y SIMBOLOS SERAN EN SCOTCHLITE REFLECTIVO GRADO INGENIERIA, AHOGADA EN CONCRETO F´c= 150 KG/CM2. LA PARTE POSTERIOR DE COLOR GRIS MATE, LA DISTANCIA Y ALTURA DE LA SEÑAL SERA LO INDICADO EN EL MANUAL DE DISPOSITIVO PARA EL CONTROL DEL TRANSITO EN CALLES Y CARRETERAS INCLUYE: MATERIALES, MANO DE OBRA Y HERRAMIENTA. P.U.O.T.","PZA",4,null,null,0]
[50,"SUMINISTRO Y COLOCACION DE SEÑAL PREVENTIVA SP-9 CODO INVERSO, CON UN TABLERO DE 71 CM X 71 CM, CON TABLERO ADICIONAL DE 30 CM X 100 CM, EN UN POSTE, LAS IMPRESIONES DE LETRAS Y SIMBOLOS SERAN EN SCOTCHLITE REFLECTIVO GRADO INGENIERIA, AHOGADA EN CONCRETO F´c= 150 KG/CM2. LA PARTE POSTERIOR DE COLOR GRIS MATE, LA DISTANCIA Y ALTURA DE LA SEÑAL SERA LO INDICADO EN EL MANUAL DE DISPOSITIVO PARA EL CONTROL DEL TRANSITO EN CALLES Y CARRETERAS INCLUYE: MATERIALES, MANO DE OBRA Y HERRAMIENTA. P.U.O.T.","PZA",2,null,null,0]
[51,"SUMINISTRO Y COLOCACION DE REDUCTOR DE VELOCIDAD A BASE DE CARPETA ASFÁLTICA EN CALIENTE, CONFORME A PROYECTO, INCLUYE CONCRETO ASFÁLTICO Y FRANJAS DIAGONALES DE COLOR BLANCO Y AMARILLO RETRORREFLEJANTE, POR UNIDAD DE OBRA TERMINADA.","M",39.799999999999997,null,null,0]
[52,"SUMINISTRO Y COLOCACIÓN DE VIALETA COLOR BLANCO CON RETROREFLEJANTE EN UNA CARA, SU COLOCACIÓN SERA SEGUN LO INDICADO EN EL MANUAL DE SEÑALIZACIÓN VIAL Y DISPOSITIVOS PARA PROTECCIÓN, INCLUYE: LIMPIEZA POR ASPERSION PARA ELIMINAR LA PRESENCIA DE POLVO, GRASA, ACEITE Y CUALQUIER MATERIAL, MATERIALES, MANO DE OBRA, HERRAMIENTA Y EQUIPO NECESARIO. P.U.O.T. ","PZA",106,null,null,0]
[{"$f":"MAX(A68:A70)+1","v":53},"SUMINISTRO Y COLOCACIÓN DE BOYA COLOR AMARILLO CON RETROREFLEJANTE DOBLE CARA, SU COLOCACIÓN SERA SEGUN LO INDICADO EN EL MANUAL DE SEÑALIZACIÓN VIAL Y DISPOSITIVOS PARA PROTECCIÓN, INCLUYE: LIMPIEZA POR ASPERSION PARA ELIMINAR LA PRESENCIA DE POLVO, GRASA, ACEITE Y CUALQUIER MATERIAL, MATERIALES, MANO DE OBRA, HERRAMIENTA Y EQUIPO NECESARIO. P.U.O.T. ","PZA",194,null,null,0]